[Event "26th Zadar Open 2019"]
[Site "Zadar"]
[Date "2019.12.16"]
[Round "3.22"]
[White "Hrescak, Ivana"]
[Black "Guttenthaler, Franz"]
[Result "1/2-1/2"]
[ECO "E48"]
[WhiteElo "2194"]
[BlackElo "2304"]
[Annotator "NA"]
[PlyCount "112"]
[EventDate "2019.12.15"]
[EventType "swiss"]
[EventCountry "CRO"]
[SourceTitle "playchess.com"]
[Source "ChessBase"]
[SourceQuality "1"]
[TimeControl "40/5400+30:1800+30"]

1. d4 {[%emt 0:00:30]} Nf6 {[%emt 0:00:30]} 2. c4 {[%emt 0:00:00]} e6 {[%emt 0:00:00]} 3. Nc3 {[%emt 0:00:00]} Bb4 {[%emt 0:00:00]} 4. e3 {[%emt 0:00:30]} O-O {[%emt 0:00:30]} 5. Bd3 {[%emt 0:00:30]} d5 {[%emt 0:01:30]} 6. Nge2 {[%emt 0:00:00]} c5 {[%emt 0:01:30]} 7. cxd5 {[%emt 0:00:00]} cxd4 {[%emt 0:02:30]} 8. exd4 {[%emt 0:00:30]} Nxd5 {[%emt 0:01:30]} 9. O-O {[%emt 0:00:30]} Nc6 {[%emt 0:02:30]} 10. Bc2 {[%emt 0:01:30]} Re8 {[%emt 0:04:30]} 11. Qd3 {[%emt 0:00:30]} g6 {[%emt 0:00:30]} 12. Ne4 {[%emt 0:03:30]} f5 {[%emt 0:05:30]} 13. N4c3 {[%emt 0:01:30]} Nxc3 {[%emt 0:08:30]} 14. bxc3 {[%emt 0:01:30]} Bf8 {[%emt 0:00:30]} 15. Rd1 {[%emt 0:02:30]} b6 {[%emt 0:05:30]} 16. Bb3 {[%emt 0:01:30]} Na5 {[%emt 0:00:30]} 17. Ba4 {[%emt 0:00:30]} Bd7 {[%emt 0:00:30]} 18. Bxd7 {[%emt 0:02:30]} Qxd7 {[%emt 0:02:30]} 19. Bg5 {[%emt 0:04:30]} Rac8 {[%emt 0:02:30]} 20. Qh3 {[%emt 0:04:30]} Bg7 {[%emt 0:05:30]} 21. Qh4 {[%emt 0:06:30]} Nc4 {[%emt 0:04:30]} 22. Rd3 {[%emt 0:03:30]} Kf7 {[%emt 0:08:30]} 23. Bh6 {[%emt 0:13:30]} Qe7 {[%emt 0:05:30]} 24. Bg5 {[%emt 0:02:30]} Qd7 {[%emt 0:00:30]} 25. Bh6 {[%emt 0:07:30]} Rc7 {[%emt 0:07:30]} 26. Bxg7 {[%emt 0:03:30]} Kxg7 {[%emt 0:00:30]} 27. Rh3 {[%emt 0:00:30]} Kg8 {[%emt 0:00:00]} 28. Nf4 {[%emt 0:01:30]} Qe7 {[%emt 0:07:00]} 29. Nxg6 {[%emt 0:03:30]} Qxh4 {[%emt 0:00:30]} 30. Nxh4 {[%emt 0:00:00]} Nd2 {[%emt 0:02:30]} 31. d5 {[%emt 0:21:04]} exd5 {[%emt 0:01:30]} 32. Rd3 {[%emt 0:00:56]} Ne4 {[%emt 0:00:30]} 33. Rxd5 {[%emt 0:01:59]} Nxc3 {[%emt 0:00:30]} 34. Rd2 {[%emt 0:02:20]} Re5 {[%emt 0:02:36]} 35. Nf3 {[%emt 0:02:52]} Rd5 {[%emt 0:01:36]} 36. Rxd5 {[%emt 0:01:45]} Nxd5 {[%emt 0:00:13]} 37. h3 {[%emt 0:03:56]} Nf4 {[%emt 0:03:44]} 38. Kf1 {[%emt 0:02:31]} Kf7 {[%emt 0:02:59]} 39. g3 {[%emt 0:00:47]} Nd3 {[%emt 0:00:05]} 40. Rd1 {[%emt 0:01:33]} Rc1 {[%emt 0:00:00]} 41. Rxc1 {[%emt 0:02:17]} Nxc1 {[%emt 0:00:47]} 42. a3 {[%emt 0:02:30]} Kf6 {[%emt 0:01:30]} 43. Nd4 {[%emt 0:02:30]} a6 {[%emt 0:02:30]} 44. f4 {[%emt 0:03:30]} h5 {[%emt 0:01:30]} 45. Kg2 {[%emt 0:02:36]} Nd3 {[%emt 0:00:30]} 46. Kf3 {[%emt 0:02:31]} Nb2 {[%emt 0:00:30]} 47. g4 {[%emt 0:02:18]} hxg4+ {[%emt 0:00:30]} 48. hxg4 {[%emt 0:00:10]} fxg4+ {[%emt 0:00:00]} 49. Kxg4 {[%emt 0:00:05]} Nc4 {[%emt 0:00:00]} 50. Nc2 {[%emt 0:04:49]} b5 {[%emt 0:00:30]} 51. Kf3 {[%emt 0:01:54]} a5 {[%emt 0:00:30]} 52. Ke4 {[%emt 0:00:39]} b4 {[%emt 0:03:30]} 53. axb4 {[%emt 0:00:39]} axb4 {[%emt 0:00:30]} 54. Nxb4 {[%emt 0:00:09]} Nd6+ {[%emt 0:00:00]} 55. Kd5 {[%emt 0:00:30]} Kf5 {[%emt 0:00:00]} 56. Kxd6 {[%emt 0:00:17]} Kxf4 {[%emt 0:00:30]} 1/2-1/2

[Event "26th Zadar Open 2019"]
[Site "Zadar"]
[Date "2019.12.16"]
[Round "3.23"]
[White "Sai Agni Jeevitesh, J."]
[Black "Ly, Dominik"]
[Result "1-0"]
[ECO "E14"]
[WhiteElo "2301"]
[BlackElo "2220"]
[Annotator "NA"]
[PlyCount "73"]
[EventDate "2019.12.15"]
[EventType "swiss"]
[EventCountry "CRO"]
[SourceTitle "playchess.com"]
[Source "ChessBase"]
[SourceQuality "1"]
[TimeControl "40/5400+30:1800+30"]

1. Nf3 {[%emt 0:00:30]} d5 {[%emt 0:05:30]} 2. e3 {[%emt 0:00:00]} Nf6 {[%emt 0:01:30]} 3. c4 {[%emt 0:00:00]} e6 {[%emt 0:00:30]} 4. Nc3 {[%emt 0:00:00]} b6 {[%emt 0:01:30]} 5. b3 {[%emt 0:00:00]} Bb7 {[%emt 0:00:00]} 6. Bb2 {[%emt 0:00:30]} Bd6 {[%emt 0:00:00]} 7. d4 {[%emt 0:05:30]} O-O {[%emt 0:03:30]} 8. cxd5 {[%emt 0:01:30]} exd5 {[%emt 0:00:30]} 9. Bd3 {[%emt 0:00:00]} c5 {[%emt 0:01:30]} 10. O-O {[%emt 0:00:00]} Nbd7 {[%emt 0:00:30]} 11. Rc1 {[%emt 0:00:30]} Rc8 {[%emt 0:01:30]} 12. Qe2 {[%emt 0:07:30]} Qe7 {[%emt 0:02:30]} 13. Ba6 {[%emt 0:05:30]} Bxa6 {[%emt 0:15:30]} 14. Qxa6 {[%emt 0:00:30]} Bb8 {[%emt 0:01:30]} 15. Rfd1 {[%emt 0:12:30]} Rfd8 {[%emt 0:04:30]} 16. dxc5 {[%emt 0:06:30]} Nxc5 {[%emt 0:03:30]} 17. Qe2 {[%emt 0:00:30]} Nce4 {[%emt 0:02:30]} 18. Nxd5 {[%emt 0:03:30]} Nxd5 {[%emt 0:00:00]} 19. Rxc8 {[%emt 0:00:00]} Rxc8 {[%emt 0:00:00]} 20. Rxd5 {[%emt 0:00:00]} h6 {[%emt 0:01:30]} 21. g3 {[%emt 0:03:30]} Nc3 {[%emt 0:08:30]} 22. Bxc3 {[%emt 0:03:30]} Rxc3 {[%emt 0:00:30]} 23. Qd2 {[%emt 0:00:30]} Rc8 {[%emt 0:00:00]} 24. Kg2 {[%emt 0:00:30]} Kh7 {[%emt 0:09:00]} 25. Qd3+ {[%emt 0:01:30]} g6 {[%emt 0:01:30]} 26. h4 {[%emt 0:00:00]} Rc5 {[%emt 0:04:30]} 27. h5 {[%emt 0:05:00]} Rxd5 {[%emt 0:04:30]} 28. hxg6+ {[%emt 0:00:30]} fxg6 {[%emt 0:00:00]} 29. Qxd5 {[%emt 0:00:30]} Bd6 {[%emt 0:00:00]} 30. Nd4 {[%emt 0:00:00]} Bc5 {[%emt 0:01:30]} 31. Nc6 {[%emt 0:00:00]} Qb7 {[%emt 0:01:30]} 32. b4 {[%emt 0:00:30]} Bf8 {[%emt 0:00:30]} 33. b5 {[%emt 0:00:30]} Bc5 {[%emt 0:06:30]} 34. e4 {[%emt 0:00:30]} Qg7 {[%emt 0:01:32]} 35. e5 {[%emt 0:00:30]} Qf8 {[%emt 0:00:38]} 36. Qd7+ {[%emt 0:00:30]} Kg8 {[%emt 0:00:16]} 37. f4 {[%emt 0:00:00]} 1-0

[Event "26th Zadar Open 2019"]
[Site "Zadar"]
[Date "2019.12.16"]
[Round "3.24"]
[White "Sutkovic, Damir"]
[Black "Ghersinich, Enrico"]
[Result "0-1"]
[ECO "A03"]
[WhiteElo "2292"]
[BlackElo "2157"]
[Annotator "NA"]
[PlyCount "110"]
[EventDate "2019.12.15"]
[EventType "swiss"]
[EventCountry "CRO"]
[SourceTitle "playchess.com"]
[Source "ChessBase"]
[SourceQuality "1"]
[TimeControl "40/5400+30:1800+30"]

1. b3 {[%emt 0:00:30]} d5 {[%emt 0:00:30]} 2. Bb2 {[%emt 0:00:00]} Nf6 {[%emt 0:00:30]} 3. e3 {[%emt 0:00:00]} g6 {[%emt 0:00:00]} 4. f4 {[%emt 0:04:30]} Bg7 {[%emt 0:00:00]} 5. Nf3 {[%emt 0:00:00]} O-O {[%emt 0:00:30]} 6. Be2 {[%emt 0:00:00]} b6 {[%emt 0:00:30]} 7. O-O {[%emt 0:00:30]} Bb7 {[%emt 0:00:30]} 8. Ne5 {[%emt 0:01:30]} c5 {[%emt 0:02:30]} 9. d3 {[%emt 0:00:00]} Nfd7 {[%emt 0:01:30]} 10. d4 {[%emt 0:05:00]} Qc7 {[%emt 0:06:30]} 11. Nd2 {[%emt 0:05:30]} Nc6 {[%emt 0:02:30]} 12. Nxd7 {[%emt 0:06:30]} Qxd7 {[%emt 0:00:00]} 13. Nf3 {[%emt 0:03:30]} Rac8 {[%emt 0:07:00]} 14. a3 {[%emt 0:06:30]} Qc7 {[%emt 0:01:30]} 15. Qd2 {[%emt 0:02:30]} e6 {[%emt 0:07:30]} 16. Rac1 {[%emt 0:06:30]} Rfd8 {[%emt 0:00:30]} 17. Ne5 {[%emt 0:06:30]} Ne7 {[%emt 0:02:30]} 18. Qe1 {[%emt 0:05:30]} Nf5 {[%emt 0:01:30]} 19. Qf2 {[%emt 0:00:30]} Nd6 {[%emt 0:03:30]} 20. c3 {[%emt 0:08:30]} c4 {[%emt 0:02:30]} 21. b4 {[%emt 0:01:30]} a5 {[%emt 0:04:30]} 22. Qe1 {[%emt 0:01:30]} Ra8 {[%emt 0:00:30]} 23. Ra1 {[%emt 0:01:30]} axb4 {[%emt 0:01:30]} 24. axb4 {[%emt 0:00:30]} Rxa1 {[%emt 0:00:30]} 25. Qxa1 {[%emt 0:00:30]} Ra8 {[%emt 0:00:30]} 26. Qc1 {[%emt 0:01:30]} Bc6 {[%emt 0:03:30]} 27. Nxc6 {[%emt 0:02:30]} Qxc6 {[%emt 0:00:00]} 28. Qc2 {[%emt 0:01:30]} Nf5 {[%emt 0:10:00]} 29. Kf2 {[%emt 0:00:30]} g5 {[%emt 0:06:30]} 30. Ra1 {[%emt 0:01:30]} Bh6 {[%emt 0:02:30]} 31. Rxa8+ {[%emt 0:01:30]} Qxa8 {[%emt 0:00:00]} 32. Bc1 {[%emt 0:03:30]} Nd6 {[%emt 0:03:00]} 33. Bf3 {[%emt 0:01:30]} f5 {[%emt 0:01:30]} 34. g3 {[%emt 0:00:30]} g4 {[%emt 0:03:30]} 35. Bg2 {[%emt 0:05:14]} Bf8 {[%emt 0:00:30]} 36. Qb2 {[%emt 0:00:41]} Qa4 {[%emt 0:01:30]} 37. Ke1 {[%emt 0:00:39]} Nb5 {[%emt 0:00:00]} 38. Bd2 {[%emt 0:03:14]} h5 {[%emt 0:06:00]} 39. h4 {[%emt 0:03:28]} gxh3 {[%emt 0:07:48]} 40. Bxh3 {[%emt 0:00:08]} Na3 {[%emt 0:02:11]} 41. Bf1 {[%emt 0:39:46]} Be7 {[%emt 0:03:31]} 42. Be2 {[%emt 0:00:00]} h4 {[%emt 0:00:30]} 43. gxh4 {[%emt 0:00:00]} Bxh4+ {[%emt 0:00:30]} 44. Kf1 {[%emt 0:00:00]} Qa7 {[%emt 0:11:30]} 45. Be1 {[%emt 0:00:00]} Bxe1 {[%emt 0:05:30]} 46. Kxe1 {[%emt 0:00:00]} Nb5 {[%emt 0:00:30]} 47. Kd2 {[%emt 0:00:00]} Nd6 {[%emt 0:00:30]} 48. Bf3 {[%emt 0:00:00]} Qg7 {[%emt 0:01:30]} 49. Qa1 {[%emt 0:00:00]} Qg3 {[%emt 0:01:30]} 50. Qf1 {[%emt 0:00:00]} Kf7 {[%emt 0:02:44]} 51. Kc2 {[%emt 0:01:01]} Kg6 {[%emt 0:03:24]} 52. Kd2 {[%emt 0:02:56]} Qh2+ {[%emt 0:01:09]} 53. Qe2 {[%emt 0:00:54]} Qg1 {[%emt 0:00:07]} 54. Qd1 {[%emt 0:00:52]} Ne4+ {[%emt 0:01:10]} 55. Kc2 {[%emt 0:02:26]} Qxe3 {[%emt 0:00:19]} 0-1

[Event "26th Zadar Open 2019"]
[Site "Zadar"]
[Date "2019.12.16"]
[Round "3.25"]
[White "Rogic, Davor"]
[Black "Khalakhan, Jurij"]
[Result "1-0"]
[ECO "B91"]
[WhiteElo "2485"]
[BlackElo "2240"]
[Annotator "ChessBase"]
[PlyCount "67"]
[EventDate "2019.12.15"]
[EventType "swiss"]
[EventCountry "CRO"]
[SourceTitle "playchess.com"]
[Source "ChessBase"]
[SourceQuality "1"]
[TimeControl "40/5400+30:1800+30"]

1. e4 {[%emt 0:00:30]} c5 {[%emt 0:05:30]} 2. Nf3 {[%emt 0:00:00]} d6 {[%emt 0:00:00]} 3. d4 {[%emt 0:00:00]} cxd4 {[%emt 0:00:00]} 4. Nxd4 {[%emt 0:00:30]} Nf6 {[%emt 0:00:00]} 5. Nc3 {[%emt 0:00:00]} a6 {[%emt 0:00:00]} 6. g3 {[%emt 0:01:00]} e5 {[%emt 0:00:30]} 7. Nde2 {[%emt 0:00:30]} Be7 {[%emt 0:03:30]} 8. Bg2 {[%emt 0:01:30]} Be6 {[%emt 0:04:30]} 9. O-O {[%emt 0:00:30]} Nbd7 {[%emt 0:01:30]} 10. a4 {[%emt 0:01:30]} Nb6 {[%emt 0:14:30]} 11. b3 {[%emt 0:09:30]} d5 {[%emt 0:02:30]} 12. a5 {[%emt 0:01:30]} d4 {[%emt 0:02:30]} 13. axb6 {[%emt 0:00:30]} dxc3 {[%emt 0:00:00]} 14. Nxc3 {[%emt 0:01:30]} Qxb6 {[%emt 0:02:00]} 15. Nd5 {[%emt 0:01:30]} Bxd5 {[%emt 0:16:30]} 16. exd5 {[%emt 0:00:30]} O-O {[%emt 0:02:30]} 17. Bb2 {[%emt 0:06:30]} Bd6 {[%emt 0:03:30]} 18. Kh1 {[%emt 0:04:30]} Nd7 {[%emt 0:06:30]} 19. f4 {[%emt 0:06:30]} Qc7 {[%emt 0:04:30]} 20. Bh3 {[%emt 0:02:30]} Rad8 {[%emt 0:00:30]} 21. Qd2 {[%emt 0:06:30]} Rfe8 {[%emt 0:03:30]} 22. c4 {[%emt 0:14:30]} Nc5 {[%emt 0:07:56]} 23. Rae1 {[%emt 0:18:30]} exf4 {[%emt 0:07:32]} 24. gxf4 {[%emt 0:06:47]} Rxe1 {[%emt 0:06:35]} 25. Rxe1 {[%emt 0:00:05]} Bxf4 {[%emt 0:00:12]} 26. Qg2 {[%emt 0:04:40]} Bh6 {[%emt 0:01:59]} 27. Bf6 {[%emt 0:02:52]} Ra8 {[%emt 0:00:51]} 28. Be5 {[%emt 0:05:24]} Qa5 {[%emt 0:00:57]} 29. Rf1 {[%emt 0:01:15]} Re8 {[%emt 0:01:27]} 30. Qf3 {[%emt 0:00:27]} f6 {[%emt 0:00:35]} 31. Bd4 {[%emt 0:00:50]} Ne4 {[%emt 0:01:33]} 32. Be6+ {[%emt 0:00:34]} Rxe6 {[%emt 0:01:07]} 33. dxe6 {[%emt 0:00:03]} Nd2 {[%emt 0:00:43]} 34. Qxb7 {[%emt 0:00:00]} 1-0

[Event "26th Zadar Open 2019"]
[Site "Zadar"]
[Date "2019.12.17"]
[Round "4.1"]
[White "Brkic, Ante"]
[Black "Dev, Shah"]
[Result "1-0"]
[ECO "C77"]
[WhiteElo "2576"]
[BlackElo "2242"]
[Annotator "ChessBase"]
[PlyCount "31"]
[EventDate "2019.12.15"]
[EventType "swiss"]
[EventCountry "CRO"]
[SourceTitle "playchess.com"]
[Source "ChessBase"]
[SourceQuality "1"]
[TimeControl "40/5400+30:1800+30"]

1. e4 {[%emt 0:00:30]} e5 {[%emt 0:00:30]} 2. Nf3 {[%emt 0:00:00]} Nc6 {[%emt 0:00:30]} 3. Bb5 {[%emt 0:00:00]} a6 {[%emt 0:00:30]} 4. Ba4 {[%emt 0:00:00]} Nf6 {[%emt 0:00:00]} 5. Nc3 {[%emt 0:00:00]} Bd6 {[%emt 0:09:00]} 6. a3 {[%emt 0:06:30]} O-O {[%emt 0:02:30]} 7. d3 {[%emt 0:00:00]} h6 {[%emt 0:01:30]} 8. g4 {[%emt 0:04:00]} Bc5 {[%emt 0:07:30]} 9. h3 {[%emt 0:10:30]} d5 {[%emt 0:14:30]} 10. g5 {[%emt 0:00:30]} dxe4 {[%emt 0:05:30]} 11. gxf6 {[%emt 0:02:30]} exf3 {[%emt 0:00:30]} 12. Bxc6 {[%emt 0:05:30]} bxc6 {[%emt 0:02:30]} 13. Ne4 {[%emt 0:01:30]} Bb6 {[%emt 0:04:30]} 14. Rg1 {[%emt 0:03:30]} g6 {[%emt 0:01:30]} 15. Qd2 {[%emt 0:01:30]} Ba5 {[%emt 0:02:30]} 16. b4 {[%emt 0:01:30]} 1-0

[Event "26th Zadar Open 2019"]
[Site "Zadar"]
[Date "2019.12.17"]
[Round "4.2"]
[White "Stany, G.A."]
[Black "Kozul, Zdenko"]
[Result "1-0"]
[ECO "B80"]
[WhiteElo "2526"]
[BlackElo "2590"]
[Annotator "ChessBase"]
[PlyCount "53"]
[EventDate "2019.12.15"]
[EventType "swiss"]
[EventCountry "CRO"]
[SourceTitle "playchess.com"]
[Source "ChessBase"]
[SourceQuality "1"]
[TimeControl "40/5400+30:1800+30"]

1. e4 {[%emt 0:00:30]} c5 {[%emt 0:01:30]} 2. Nf3 {[%emt 0:00:00]} d6 {[%emt 0:00:30]} 3. d4 {[%emt 0:00:00]} cxd4 {[%emt 0:00:30]} 4. Nxd4 {[%emt 0:00:00]} Nf6 {[%emt 0:00:00]} 5. Nc3 {[%emt 0:00:00]} a6 {[%emt 0:01:00]} 6. Be3 {[%emt 0:00:30]} Nbd7 {[%emt 0:03:30]} 7. g4 {[%emt 0:07:30]} h6 {[%emt 0:05:30]} 8. f3 {[%emt 0:03:30]} e6 {[%emt 0:07:30]} 9. Qd2 {[%emt 0:00:00]} b5 {[%emt 0:00:30]} 10. h4 {[%emt 0:01:00]} Ne5 {[%emt 0:09:30]} 11. Rg1 {[%emt 0:15:30]} b4 {[%emt 0:11:30]} 12. Na4 {[%emt 0:07:30]} Bd7 {[%emt 0:02:30]} 13. b3 {[%emt 0:01:30]} Bxa4 {[%emt 0:00:30]} 14. bxa4 {[%emt 0:00:00]} d5 {[%emt 0:04:30]} 15. g5 {[%emt 0:08:00]} hxg5 {[%emt 0:02:30]} 16. hxg5 {[%emt 0:00:30]} Nxf3+ {[%emt 0:01:30]} 17. Nxf3 {[%emt 0:00:30]} Nxe4 {[%emt 0:00:30]} 18. Qd4 {[%emt 0:01:30]} Qc7 {[%emt 0:11:30]} 19. Bd3 {[%emt 0:04:30]} Bc5 {[%emt 0:13:30]} 20. Qxg7 {[%emt 0:00:30]} Rh3 {[%emt 0:00:30]} 21. Bxc5 {[%emt 0:13:30]} Qxc5 {[%emt 0:01:30]} 22. O-O-O {[%emt 0:00:30]} Rxf3 {[%emt 0:04:23]} 23. Bxe4 {[%emt 0:00:00]} Rc8 {[%emt 0:08:35]} 24. Bh7 {[%emt 0:06:00]} Rc3 {[%emt 0:00:09]} 25. Kb1 {[%emt 0:01:30]} b3 {[%emt 0:03:25]} 26. cxb3 {[%emt 0:07:30]} Qe3 {[%emt 0:00:07]} 27. Rgf1 {[%emt 0:01:30]} 1-0

[Event "26th Zadar Open 2019"]
[Site "Zadar"]
[Date "2019.12.17"]
[Round "4.3"]
[White "Nguyen, Piotr"]
[Black "Yeoh, Li Tian"]
[Result "0-1"]
[ECO "A85"]
[WhiteElo "2413"]
[BlackElo "2530"]
[Annotator "ChessBase"]
[PlyCount "94"]
[EventDate "2019.12.15"]
[EventType "swiss"]
[EventCountry "CRO"]
[SourceTitle "playchess.com"]
[Source "ChessBase"]
[SourceQuality "1"]
[TimeControl "40/5400+30:1800+30"]

1. Nf3 {[%emt 0:00:30]} f5 {[%emt 0:01:30]} 2. d4 {[%emt 0:03:30]} Nf6 {[%emt 0:00:30]} 3. c4 {[%emt 0:01:30]} g6 {[%emt 0:00:30]} 4. Nc3 {[%emt 0:03:30]} Bg7 {[%emt 0:01:30]} 5. Bf4 {[%emt 0:00:30]} d6 {[%emt 0:01:30]} 6. e3 {[%emt 0:00:30]} O-O {[%emt 0:01:30]} 7. c5 {[%emt 0:00:30]} e6 {[%emt 0:23:30]} 8. Bc4 {[%emt 0:09:30]} h6 {[%emt 0:03:30]} 9. h3 {[%emt 0:02:30]} Kh7 {[%emt 0:15:30]} 10. O-O {[%emt 0:09:30]} dxc5 {[%emt 0:06:30]} 11. dxc5 {[%emt 0:00:30]} Qe7 {[%emt 0:00:30]} 12. Rc1 {[%emt 0:03:30]} Nc6 {[%emt 0:07:30]} 13. Bb5 {[%emt 0:10:30]} Nd8 {[%emt 0:17:46]} 14. Qe2 {[%emt 0:07:30]} Nf7 {[%emt 0:01:03]} 15. e4 {[%emt 0:01:30]} c6 {[%emt 0:09:12]} 16. exf5 {[%emt 0:03:30]} gxf5 {[%emt 0:00:08]} 17. Bd3 {[%emt 0:02:30]} Qxc5 {[%emt 0:00:07]} 18. Nb5 {[%emt 0:03:30]} Qb4 {[%emt 0:00:08]} 19. Bd2 {[%emt 0:02:30]} Qe7 {[%emt 0:03:25]} 20. Bxf5+ {[%emt 0:01:30]} Kg8 {[%emt 0:00:04]} 21. Nbd4 {[%emt 0:00:30]} c5 {[%emt 0:00:41]} 22. Nb3 {[%emt 0:04:30]} b6 {[%emt 0:00:20]} 23. Bc3 {[%emt 0:03:30]} Nd5 {[%emt 0:01:31]} 24. Bxg7 {[%emt 0:01:30]} Kxg7 {[%emt 0:00:06]} 25. Bb1 {[%emt 0:01:30]} Rg8 {[%emt 0:00:35]} 26. Ne5 {[%emt 0:11:05]} Nxe5 {[%emt 0:01:54]} 27. Qxe5+ {[%emt 0:00:09]} Qf6 {[%emt 0:00:04]} 28. Rfe1 {[%emt 0:02:58]} Bd7 {[%emt 0:01:32]} 29. Qxf6+ {[%emt 0:02:12]} Kxf6 {[%emt 0:00:04]} 30. Nd2 {[%emt 0:01:43]} Nf4 {[%emt 0:00:23]} 31. Ne4+ {[%emt 0:02:37]} Ke7 {[%emt 0:00:10]} 32. Ng3 {[%emt 0:00:03]} Raf8 {[%emt 0:00:00]} 33. Rc4 {[%emt 0:00:34]} Bb5 {[%emt 0:00:16]} 34. Rc3 {[%emt 0:01:02]} h5 {[%emt 0:00:35]} 35. Ra3 {[%emt 0:01:12]} a6 {[%emt 0:00:31]} 36. Kh1 {[%emt 0:01:33]} Kd7 {[%emt 0:00:38]} 37. Be4 {[%emt 0:01:37]} Bc4 {[%emt 0:01:38]} 38. Nf1 {[%emt 0:01:09]} Bd5 {[%emt 0:00:39]} 39. Rxa6 {[%emt 0:00:32]} Nxg2 {[%emt 0:00:20]} 40. Rd1 {[%emt 0:00:28]} Rxf2 {[%emt 0:00:00]} 41. Bxd5 {[%emt 0:13:29]} exd5 {[%emt 0:02:40]} 42. Rxb6 {[%emt 0:00:22]} Nh4 {[%emt 0:00:30]} 43. Rb3 {[%emt 0:13:04]} Nf3 {[%emt 0:04:30]} 44. Rxd5+ {[%emt 0:00:35]} Kc6 {[%emt 0:00:30]} 45. Rxf3 {[%emt 0:00:05]} Rxf3 {[%emt 0:00:00]} 46. Rd1 {[%emt 0:00:04]} Rxh3+ {[%emt 0:00:00]} 47. Nh2 {[%emt 0:00:04]} Re3 {[%emt 0:00:30]} 0-1

[Event "26th Zadar Open 2019"]
[Site "Zadar"]
[Date "2019.12.17"]
[Round "4.4"]
[White "Predojevic, Borki"]
[Black "Bukal, Vladimir Jr."]
[Result "1-0"]
[ECO "C03"]
[WhiteElo "2616"]
[BlackElo "2393"]
[Annotator "ChessBase"]
[PlyCount "57"]
[EventDate "2019.12.15"]
[EventType "swiss"]
[EventCountry "CRO"]
[SourceTitle "playchess.com"]
[Source "ChessBase"]
[SourceQuality "1"]
[TimeControl "40/5400+30:1800+30"]

1. e4 {[%emt 0:00:30]} e6 {[%emt 0:00:30]} 2. d4 {[%emt 0:00:00]} d5 {[%emt 0:00:30]} 3. Nd2 {[%emt 0:00:00]} h6 {[%emt 0:00:30]} 4. Ngf3 {[%emt 0:00:30]} Nf6 {[%emt 0:00:30]} 5. e5 {[%emt 0:00:30]} Nfd7 {[%emt 0:00:00]} 6. Bd3 {[%emt 0:00:30]} c5 {[%emt 0:00:00]} 7. c3 {[%emt 0:00:00]} Nc6 {[%emt 0:00:00]} 8. O-O {[%emt 0:00:00]} g5 {[%emt 0:00:00]} 9. b3 {[%emt 0:00:30]} Bg7 {[%emt 0:11:30]} 10. Bb2 {[%emt 0:01:30]} O-O {[%emt 0:03:30]} 11. h3 {[%emt 0:11:30]} a6 {[%emt 0:06:30]} 12. Re1 {[%emt 0:15:30]} b5 {[%emt 0:00:30]} 13. Rc1 {[%emt 0:03:30]} Qb6 {[%emt 0:17:30]} 14. Bb1 {[%emt 0:04:30]} f5 {[%emt 0:09:30]} 15. exf6 {[%emt 0:00:30]} Nxf6 {[%emt 0:04:30]} 16. dxc5 {[%emt 0:09:30]} Qxc5 {[%emt 0:14:30]} 17. c4 {[%emt 0:00:30]} bxc4 {[%emt 0:00:30]} 18. bxc4 {[%emt 0:09:30]} Qb6 {[%emt 0:10:46]} 19. cxd5 {[%emt 0:12:30]} exd5 {[%emt 0:00:55]} 20. Nb3 {[%emt 0:00:30]} d4 {[%emt 0:07:26]} 21. Nbxd4 {[%emt 0:08:51]} Bd7 {[%emt 0:02:37]} 22. Ba3 {[%emt 0:07:52]} Rfd8 {[%emt 0:02:37]} 23. Bc5 {[%emt 0:01:20]} Qb7 {[%emt 0:01:14]} 24. Qc2 {[%emt 0:00:56]} Rac8 {[%emt 0:04:06]} 25. Qg6 {[%emt 0:06:16]} Nxd4 {[%emt 0:01:25]} 26. Bxd4 {[%emt 0:00:11]} Rxc1 {[%emt 0:00:32]} 27. Bxf6 {[%emt 0:01:47]} Rxe1+ {[%emt 0:00:36]} 28. Nxe1 {[%emt 0:00:03]} Bf5 {[%emt 0:00:37]} 29. Bxf5 {[%emt 0:00:00]} 1-0